fUSD/lending_fUSD_20241222
["ID","MTS","AMOUNT","RATE_DAILY","PERIOD"]
[346256936,1734839432859,-500.0,0.00019178,2]
[346256939,1734839432868,-500.0,0.00019178,2]
[346256941,1734839432877,-500.0,0.00019178,2]
[346256943,1734839432886,-500.0,0.00019178,2]
[346256945,1734839432895,-500.0,0.00019178,2]
[346256947,1734839432905,-559.73880046,0.00019178,2]
[346256949,1734839432914,-500.0,0.00019178,2]
[346256951,1734839432923,-503.99884743,0.00019178,2]
[346256953,1734839432932,-500.0,0.00019178,2]
[346256955,1734839432941,-227.63041596,0.00019178,2]
[346256957,1734839432952,-500.0,0.00019178,2]
[346256959,1734839432961,-500.0,0.00019178,2]
[346256961,1734839432971,-500.0,0.00019178,2]
[346256963,1734839432980,-500.0,0.00019178,2]
[346256965,1734839432990,-500.0,0.00019178,2]
[346256967,1734839432999,-500.0,0.00019178,2]
[346256968,1734839433008,-500.0,0.00019178,2]
[346256969,1734839433017,-500.0,0.00019178,2]
[346256970,1734839433026,-515.71088259,0.00019178,2]
[346256971,1734839433035,-500.0,0.00019178,2]
[346256972,1734839433045,-523.13821638,0.00019178,2]
[346256973,1734839433054,-520.8236943,0.00019178,2]
[346256974,1734839433063,-500.0,0.00019178,2]
[346256975,1734839433073,-279.99118009,0.00019178,2]
[346256976,1734839433082,-500.0,0.00019178,2]
[346256977,1734839433091,-500.0,0.00019178,2]
[346256978,1734839433100,-286.24753031,0.00019178,2]
[346256979,1734839433110,-500.0,0.00019178,2]
[346256980,1734839433119,-160.1294273,0.00019178,2]
[346256981,1734839433128,-500.0,0.00019178,2]
[346256982,1734839433138,-500.0,0.00019178,2]
[346256983,1734839433147,-975.86,0.00019178,2]
[346256984,1734839433156,-500.0,0.00019178,2]
[346256985,1734839433165,-500.0,0.00019178,2]
[346256986,1734839433174,-500.0,0.00019178,2]
[346256987,1734839433183,-500.0,0.00019178,2]
[346256988,1734839433192,-151.0,0.00019178,2]
[346256989,1734839433201,-475.0,0.00019178,2]
[346256990,1734839433210,-153.03987,0.00019178,2]
[346256991,1734839433219,-500.0,0.00019178,2]
[346256992,1734839433228,-500.0,0.00019178,2]
[346256993,1734839433236,-500.0,0.00019178,2]
[346256994,1734839433245,-479.44369728,0.00019178,2]
[346256995,1734839433254,-500.0,0.00019178,2]
[346256996,1734839433264,-1548.82,0.00019178,2]
[346256997,1734839433273,-500.0,0.00019178,2]
[346256998,1734839433282,-500.0,0.00019178,2]
[346256999,1734839433291,-500.0,0.00019178,2]
[346257000,1734839433300,-500.0,0.00019178,2]
[346257001,1734839433309,-311.12,0.00019178,2]
[346257002,1734839433318,-500.0,0.00019178,2]
[346257003,1734839433329,-500.0,0.00019178,2]
[346257004,1734839433339,-2665.03,0.00019178,2]
[346257005,1734839433348,-500.0,0.00019178,2]
[346257006,1734839433357,-513.89286206,0.00019178,2]
[346257007,1734839433366,-500.0,0.00019178,2]
[346257008,1734839433375,-500.0,0.00019178,2]
[346257009,1734839433384,-500.0,0.00019178,2]
[346257010,1734839433393,-500.0,0.00019178,2]
[346257011,1734839433402,-520.93930752,0.00019178,2]
[346257012,1734839433411,-500.0,0.00019178,2]
[346257013,1734839433420,-500.0,0.00019178,2]
[346257014,1734839433429,-500.0,0.00019178,2]
[346257015,1734839433440,-152.79493877,0.00019178,2]
[346257016,1734839433455,-347.20506123,0.00019178,2]
[346257017,1734839433464,-500.0,0.00019178,2]
[346257018,1734839433473,-500.0,0.00019178,2]
[346257019,1734839433484,-500.0,0.00019178,2]
[346257020,1734839433493,-243.28384808,0.00019178,2]
[346257021,1734839433504,-256.71615192,0.00019178,2]
[346257022,1734839433514,-500.0,0.00019178,2]
[346257023,1734839433524,-235.46948424,0.00019178,2]
[346257024,1734839433552,-264.53051576,0.00019178,2]
[346257025,1734839433560,-500.0,0.00019178,2]
[346257026,1734839433570,-500.0,0.00019178,2]
[346257027,1734839433580,-200.12970712,0.00019178,2]
[346257028,1734839433589,-500.0,0.00019178,2]
[346257029,1734839433598,-500.0,0.00019178,2]
[346257030,1734839433609,-500.0,0.00019178,2]
[346257031,1734839433618,-500.0,0.00019178,2]
[346257032,1734839433627,-500.0,0.00019178,2]
[346257033,1734839433636,-1275.96,0.00019178,2]
[346257034,1734839433646,-500.0,0.00019178,2]
[346257035,1734839433655,-500.0,0.00019178,2]
[346257036,1734839433664,-500.0,0.00019178,2]
[346257037,1734839433673,-500.0,0.00019178,2]
[346257038,1734839433682,-168.54906894,0.00019178,2]
[346257039,1734839433691,-500.0,0.00019178,2]
[346257040,1734839433701,-500.0,0.00019178,2]
[346257041,1734839433710,-505.81060616,0.00019178,2]
[346257042,1734839433719,-519.29271996,0.00019178,2]
[346257043,1734839433729,-500.0,0.00019178,2]
[346257044,1734839433739,-500.0,0.00019178,2]
[346257045,1734839433748,-500.0,0.00019178,2]
[346257046,1734839433757,-500.0,0.00019178,2]
[346257047,1734839433767,-507.89063134,0.00019178,2]
[346257048,1734839433776,-500.0,0.00019178,2]
[346257049,1734839433785,-500.0,0.00019178,2]
[346257050,1734839433795,-500.0,0.00019178,2]
[346257051,1734839433804,-500.0,0.00019178,2]
[346257052,1734839433813,-221.07246636,0.00019178,2]
[346257053,1734839433823,-559.87703974,0.00019178,2]
[346257054,1734839433834,-500.0,0.00019178,2]
[346257055,1734839433844,-500.0,0.00019178,2]
[346257056,1734839433853,-500.0,0.00019178,2]
[346257057,1734839433862,-503.48776672,0.00019178,2]
[346257058,1734839433872,-500.0,0.00019178,2]
[346257059,1734839433881,-500.0,0.00019178,2]
[346257060,1734839433890,-503.20848663,0.00019178,2]
[346257061,1734839433900,-500.0,0.00019178,2]
[346257062,1734839433909,-500.0,0.00019178,2]
[346257063,1734839433919,-500.0,0.00019178,2]
[346257064,1734839433928,-500.0,0.00019178,2]
[346257065,1734839433937,-500.0,0.00019178,2]
[346257066,1734839433947,-500.0,0.00019178,2]
[346257067,1734839433956,-500.0,0.00019178,2]
[346257068,1734839433966,-500.0,0.00019178,2]
[346257069,1734839433975,-500.0,0.00019178,2]
[346257070,1734839433984,-500.0,0.00019178,2]
[346257071,1734839433993,-500.0,0.00019178,2]
[346257072,1734839434003,-500.0,0.00019178,2]
[346257073,1734839434012,-500.0,0.00019178,2]
[346257074,1734839434021,-500.0,0.00019178,2]
[346257075,1734839434030,-513.52668027,0.00019178,2]
[346257076,1734839434040,-500.0,0.00019178,2]
[346257077,1734839434049,-500.0,0.00019178,2]
[346257078,1734839434058,-520.44668797,0.00019178,2]
[346257079,1734839434068,-618.36,0.00019178,2]
[346257080,1734839434078,-500.0,0.00019178,2]
[346257081,1734839434088,-500.0,0.00019178,2]
[346257082,1734839434097,-500.0,0.00019178,2]
[346257083,1734839434107,-500.0,0.00019178,2]
[346257084,1734839434116,-500.0,0.00019178,2]
[346257085,1734839434125,-500.0,0.00019178,2]
[346257086,1734839434135,-1244.63,0.00019178,2]
[346257087,1734839434145,-500.0,0.00019178,2]
[346257088,1734839434155,-500.0,0.00019178,2]
[346257089,1734839434164,-500.0,0.00019178,2]
[346257090,1734839434173,-500.0,0.00019178,2]
[346257091,1734839434182,-1923.73,0.00019178,2]
[346257092,1734839434191,-500.0,0.00019178,2]
[346257093,1734839434201,-500.0,0.00019178,2]
[346257094,1734839434210,-500.0,0.00019178,2]
[346257095,1734839434220,-500.0,0.00019178,2]
[346257096,1734839434229,-500.0,0.00019178,2]
[346257097,1734839434239,-501.67472121,0.00019178,2]
[346257098,1734839434248,-500.0,0.00019178,2]
[346257099,1734839434257,-500.0,0.00019178,2]
[346257100,1734839434267,-500.0,0.00019178,2]
[346257101,1734839434276,-500.0,0.00019178,2]
[346257102,1734839434286,-500.0,0.00019178,2]
[346257103,1734839434295,-1293.751532,0.00019178,2]
[346257104,1734839434304,-500.0,0.00019178,2]
[346257105,1734839434314,-573.09371116,0.00019178,2]
[346257106,1734839434323,-503.99305086,0.00019178,2]
[346257107,1734839434334,-500.0,0.00019178,2]
[346257108,1734839434343,-500.0,0.00019178,2]
[346257109,1734839434353,-500.0,0.00019178,2]
[346257110,1734839434362,-507.09828995,0.00019178,2]
[346257111,1734839434372,-500.0,0.00019178,2]
[346257112,1734839434381,-500.06663112,0.00019178,2]
[346257113,1734839434391,-465.0784765,0.00019178,2]
[346257114,1734839434401,-500.0,0.00019178,2]
[346257115,1734839434410,-516.97010049,0.00019178,2]
[346257116,1734839434420,-500.0,0.00019178,2]
[346257117,1734839434429,-500.0,0.00019178,2]
[346257118,1734839434441,-500.0,0.00019178,2]
[346257119,1734839434629,-500.0,0.00019178,2]
[346257120,1734839434641,-500.0,0.00019178,2]
[346257121,1734839434650,-500.0,0.00019178,2]
[346257122,1734839434660,-500.0,0.00019178,2]
[346257123,1734839434669,-500.0,0.00019178,2]
[346257124,1734839434679,-500.0,0.00019178,2]
[346257125,1734839434688,-790.68,0.00019178,2]
[346257126,1734839434698,-500.0,0.00019178,2]
[346257127,1734839434707,-500.0,0.00019178,2]
[346257128,1734839434716,-901.211069,0.00019178,2]
[346257129,1734839434726,-500.0,0.00019178,2]
[346257130,1734839434737,-620.28132965,0.00019178,2]
[346257131,1734839434746,-500.0,0.00019178,2]
[346257132,1734839434755,-503.80089995,0.00019178,2]
[346257133,1734839434765,-537.29,0.00019178,2]
[346257134,1734839434774,-500.0,0.00019178,2]
[346257135,1734839434784,-500.0,0.00019178,2]
[346257136,1734839434793,-500.0,0.00019178,2]
[346257137,1734839434803,-500.0,0.00019178,2]
[346257138,1734839434812,-497.99260789,0.00019178,2]
[346257139,1734839434822,-500.0,0.00019178,2]
[346257140,1734839434833,-500.0,0.00019178,2]
[346257141,1734839434842,-1329.09,0.00019178,2]
[346257142,1734839434851,-505.29002414,0.00019178,2]
[346257143,1734839434861,-505.55881758,0.00019178,2]
[346257144,1734839434870,-500.0,0.00019178,2]
[346257145,1734839434880,-500.0,0.00019178,2]
[346257146,1734839434889,-500.0,0.00019178,2]
[346257147,1734839434899,-503.43487745,0.00019178,2]
[346257148,1734839434909,-500.0,0.00019178,2]
[346257149,1734839434918,-501.01437342,0.00019178,2]
[346257150,1734839434927,-500.0,0.00019178,2]
[346257151,1734839434937,-630.36964491,0.00019178,2]
[346257152,1734839434947,-555.3621028,0.00019178,2]
[346257153,1734839434956,-500.0,0.00019178,2]
[346257154,1734839434967,-500.0,0.00019178,2]
[346257155,1734839434976,-512.40858898,0.00019178,2]
[346257156,1734839434985,-400.0,0.00019178,2]
[346257157,1734839434994,-288.838143,0.00019178,2]
[346257158,1734839435004,-404.43337452,0.00019178,2]
[346257159,1734839435021,-134.61662548,0.00019178,2]
[346257160,1734839435030,-231.41337452,0.00019178,2]
[346257161,1734839435042,-268.58662548,0.00019178,2]
[346257162,1734839435052,-504.32163712,0.00019178,2]
[346257163,1734839435061,-15.5917374,0.00019178,2]
[346257192,1734839440451,-343.88842845,0.00019178,2]
[346257193,1734839440465,-140.51983415,0.00019178,2]
[346257194,1734839440476,-342.62854132,0.00019178,2]
[346257195,1734839440487,-16.85162453,0.00019178,2]
[346257196,1734839440503,-483.14837547,0.00019178,2]
[346257197,1734839440515,-500.0,0.00019178,2]
[346257198,1734839440528,-301.45675313,0.00019178,2]
[346257199,1734839440764,-198.54324687,0.00019178,2]
[346257200,1734839440776,-492.19497662,0.00019178,2]
[346257201,1734839440793,-7.80502338,0.00019178,2]
[346257202,1734839440807,-500.0,0.00019178,2]
[346257203,1734839440820,-162.24997662,0.00019178,2]
[346257211,1734839445370,-337.75002338,0.00019178,2]
[346257213,1734839445381,-436.41949854,0.00019178,2]
[346257215,1734839445392,-524.61,0.00019178,2]
[346257217,1734839445403,-500.0,0.00019178,2]
[346257219,1734839445414,-500.0,0.00019178,2]
[346257220,1734839445425,-500.0,0.00019178,2]
[346257222,1734839445437,-1727.9,0.00019178,2]
[346257224,1734839445451,-504.29659101,0.00019178,2]
[346257225,1734839445462,-500.0,0.00019178,2]
[346257226,1734839445473,-500.0,0.00019178,2]
[346257227,1734839445484,-500.0,0.00019178,2]
[346257228,1734839445495,-505.14062028,0.00019178,2]
[346257229,1734839445506,-500.0,0.00019178,2]
[346257230,1734839445518,-500.0,0.00019178,2]
[346257231,1734839445528,-504.41962345,0.00019178,2]
[346257232,1734839445540,-500.0,0.00019178,2]
[346257233,1734839445551,-501.65870022,0.00019178,2]
[346257234,1734839445563,-508.12695731,0.00019178,2]
[346257235,1734839445574,-501.90768144,0.00019178,2]
[346257236,1734839445585,-500.0,0.00019178,2]
[346257237,1734839445596,-500.0,0.00019178,2]
[346257238,1734839445608,-500.0,0.00019178,2]
[346257239,1734839445619,-337.45062759,0.00019178,2]
[346257248,1734839446313,-175.94272542,0.00019178,2]
[346257249,1734839446323,-2020.12,0.00019178,2]
[346257250,1734839446332,-502.32666787,0.00019178,2]
[346257251,1734839446342,-500.0,0.00019178,2]
[346257252,1734839446352,-500.0,0.00019178,2]
[346257253,1734839446361,-508.54038472,0.00019178,2]
[346257254,1734839446371,-500.0,0.00019178,2]
[346257255,1734839446380,-500.0,0.00019178,2]
[346257256,1734839446389,-111.04524986,0.00019178,2]
[346257257,1734839446684,-388.95475014,0.00019178,2]
[346257258,1734839446699,-503.56532336,0.00019178,2]
[346257259,1734839446709,-614.92,0.00019178,2]
[346257260,1734839446719,-612.32985252,0.00019178,2]
[346257261,1734839446728,-500.0,0.00019178,2]
[346257262,1734839446738,-500.0,0.00019178,2]
[346257263,1734839446747,-214.76084554,0.00019178,2]
[346257264,1734839446757,-500.0,0.00019178,2]
[346257265,1734839446766,-500.0,0.00019178,2]
[346257266,1734839446775,-505.60940952,0.00019178,2]
[346257267,1734839446785,-500.0,0.00019178,2]
[346257269,1734839446795,-500.0,0.00019178,2]
[346257271,1734839446804,-500.0,0.00019178,2]
[346257273,1734839446813,-101.85505754,0.00019178,2]
[346257274,1734839446824,-398.14494246,0.00019178,2]
[346257275,1734839446834,-500.0,0.00019178,2]
[346257276,1734839446845,-88.15651808,0.00019178,2]
[346257277,1734839446866,-414.45677532,0.00019178,2]
[346257278,1734839446875,-500.0,0.00019178,2]
[346257279,1734839446884,-450.0,0.00019178,2]
[346257280,1734839446894,-500.0,0.00019178,2]
[346257281,1734839446903,-500.0,0.00019178,2]
[346257282,1734839446912,-500.0,0.00019178,2]
[346257283,1734839446921,-500.0,0.00019178,2]
[346257284,1734839446930,-509.29894969,0.00019178,2]
[346257285,1734839446939,-500.0,0.00019178,2]
[346257286,1734839446949,-541.65245792,0.00019178,2]
[346257287,1734839446958,-501.36014027,0.00019178,2]
[346257288,1734839446967,-500.0,0.00019178,2]
[346257289,1734839446976,-506.56998189,0.00019178,2]
[346257290,1734839446985,-500.0,0.00019178,2]
[346257291,1734839446994,-500.0,0.00019178,2]
[346257292,1734839447003,-500.0,0.00019178,2]
[346257293,1734839447013,-502.81444908,0.00019178,2]
[346257294,1734839447021,-500.0,0.00019178,2]
[346257295,1734839447030,-501.81519913,0.00019178,2]
[346257296,1734839447039,-501.91797958,0.00019178,2]
[346257297,1734839447048,-506.67944945,0.00019178,2]
[346257298,1734839447057,-506.66006883,0.00019178,2]
[346257299,1734839447066,-500.0,0.00019178,2]
[346257300,1734839447075,-500.0,0.00019178,2]
[346257301,1734839447085,-500.0,0.00019178,2]
[346257302,1734839447096,-500.0,0.00019178,2]
[346257303,1734839447105,-500.0,0.00019178,2]
[346257304,1734839447114,-500.0,0.00019178,2]
[346257305,1734839447123,-511.63496964,0.00019178,2]
[346257306,1734839447132,-500.0,0.00019178,2]
[346257307,1734839447141,-500.83684614,0.00019178,2]
[346257308,1734839447150,-508.80253627,0.00019178,2]
[346257309,1734839447159,-500.0,0.00019178,2]
[346257310,1734839447168,-500.0,0.00019178,2]
[346257311,1734839447177,-500.0,0.00019178,2]
[346257312,1734839447187,-500.0,0.00019178,2]
[346257313,1734839447196,-489.0,0.00019178,2]
[346257314,1734839447205,-2134.18,0.00019178,2]
[346257315,1734839447214,-504.52713584,0.00019178,2]
[346257316,1734839447223,-500.0,0.00019178,2]
[346257317,1734839447233,-500.0,0.00019178,2]
[346257318,1734839447243,-500.0,0.00019178,2]
[346257319,1734839447252,-1158.18781,0.00019178,2]
[346257320,1734839447261,-500.0,0.00019178,2]
[346257321,1734839447270,-500.0,0.00019178,2]
[346257322,1734839447279,-500.0,0.00019178,2]
[346257323,1734839447288,-500.0,0.00019178,2]
[346257324,1734839447298,-500.0,0.00019178,2]
[346257325,1734839447308,-500.0,0.00019178,2]
[346257326,1734839447317,-500.0,0.00019178,2]
[346257327,1734839447327,-500.0,0.00019178,2]
[346257328,1734839447336,-500.0,0.00019178,2]
[346257329,1734839447347,-500.0,0.00019178,2]
[346257330,1734839447356,-503.61712962,0.00019178,2]
[346257331,1734839447366,-500.0,0.00019178,2]
[346257332,1734839447375,-501.52508019,0.00019178,2]
[346257333,1734839447384,-500.0,0.00019178,2]
[346257334,1734839447393,-512.85734791,0.00019178,2]
[346257335,1734839447402,-500.0,0.00019178,2]
[346257336,1734839447411,-500.0,0.00019178,2]
[346257337,1734839447420,-500.0,0.00019178,2]
[346257338,1734839447429,-532.89,0.00019178,2]
[346257339,1734839447439,-773.62,0.00019178,2]
[346257340,1734839447451,-500.0,0.00019178,2]
[346257341,1734839447460,-3015.32,0.00019178,2]
[346257342,1734839447469,-502.20307878,0.00019178,2]
[346257343,1734839447478,-504.35345038,0.00019178,2]
[346257344,1734839447489,-500.0,0.00019178,2]
[346257345,1734839447499,-500.0,0.00019178,2]
[346257346,1734839447510,-505.7992372,0.00019178,2]
[346257347,1734839447519,-596.96,0.00019178,2]
[346257348,1734839447529,-505.24621785,0.00019178,2]
[346257349,1734839447538,-500.0,0.00019178,2]
[346257350,1734839447547,-500.0,0.00019178,2]
[346257351,1734839447556,-500.0,0.00019178,2]
[346257352,1734839447566,-500.0,0.00019178,2]
[346257353,1734839447575,-199.52657034,0.00019178,2]
[346257354,1734839447584,-1091.18,0.00019178,2]
[346257355,1734839447597,-500.0,0.00019178,2]
[346257356,1734839447609,-501.8694338,0.00019178,2]
[346257357,1734839447619,-500.0,0.00019178,2]
[346257358,1734839447628,-809.93,0.00019178,2]
[346257359,1734839447638,-500.0,0.00019178,2]
[346257360,1734839447647,-200.0,0.00019178,2]
[346257361,1734839447657,-500.0,0.00019178,2]
[346257362,1734839447666,-981.22,0.00019178,2]
[346257363,1734839447675,-500.0,0.00019178,2]
[346257364,1734839447684,-500.0,0.00019178,2]
[346257365,1734839447693,-500.0,0.00019178,2]
[346257366,1734839447702,-523.88275692,0.00019178,2]
[346257367,1734839447711,-500.0,0.00019178,2]
[346257368,1734839447721,-500.0,0.00019178,2]
[346257369,1734839447730,-1011.84,0.00019178,2]
[346257370,1734839447740,-962.09,0.00019178,2]
[346257371,1734839447749,-500.0,0.00019178,2]
[346257372,1734839447759,-922.9,0.00019178,2]
[346257373,1734839447769,-500.0,0.00019178,2]
[346257374,1734839447778,-3591.21,0.00019178,2]
[346257375,1734839447787,-500.0,0.00019178,2]
[346257376,1734839447796,-509.11721053,0.00019178,2]
[346257377,1734839447806,-500.0,0.00019178,2]
[346257378,1734839447815,-657.47,0.00019178,2]
[346257379,1734839447824,-1035.54,0.00019178,2]
[346257380,1734839447833,-500.0,0.00019178,2]
[346257381,1734839447845,-500.0,0.00019178,2]
[346257382,1734839447854,-500.0,0.00019178,2]
[346257383,1734839447863,-500.0,0.00019178,2]
[346257384,1734839447873,-500.0,0.00019178,2]
[346257385,1734839447883,-848.02,0.00019178,2]
[346257386,1734839447892,-500.0,0.00019178,2]
[346257387,1734839447902,-500.0,0.00019178,2]
[346257388,1734839447912,-500.0,0.00019178,2]
[346257389,1734839447921,-503.06871777,0.00019178,2]
[346257390,1734839447932,-961.54,0.00019178,2]
[346257391,1734839447942,-500.0,0.00019178,2]
[346257392,1734839447952,-500.0,0.00019178,2]
[346257393,1734839447962,-500.0,0.00019178,2]
[346257394,1734839447971,-500.0,0.00019178,2]
[346257395,1734839447981,-500.0,0.00019178,2]
[346257396,1734839447990,-807.15,0.00019178,2]
[346257397,1734839447999,-500.0,0.00019178,2]
[346257398,1734839448010,-500.0,0.00019178,2]
[346257399,1734839448019,-500.0,0.00019178,2]
[346257400,1734839448028,-501.04436566,0.00019178,2]
[346257401,1734839448037,-500.0,0.00019178,2]
[346257402,1734839448046,-501.59063101,0.00019178,2]
[346257403,1734839448055,-1191.09,0.00019178,2]
[346257404,1734839448064,-586.55,0.00019178,2]
[346257405,1734839448074,-6799.31,0.00019178,2]
[346257406,1734839448084,-759.84,0.00019178,2]
[346257407,1734839448096,-758.48,0.00019178,2]
[346257408,1734839448106,-502.7377156,0.00019178,2]
[346257409,1734839448115,-500.0,0.00019178,2]
[346257410,1734839448126,-504.34522655,0.00019178,2]
[346257411,1734839448135,-504.8948333,0.00019178,2]
[346257412,1734839448145,-500.0,0.00019178,2]
[346257413,1734839448155,-500.0,0.00019178,2]
[346257414,1734839448164,-501.63381721,0.00019178,2]
[346257415,1734839448173,-501.45492029,0.00019178,2]
[346257416,1734839448183,-500.0,0.00019178,2]
[346257417,1734839448192,-2548.35,0.00019178,2]
[346257418,1734839448201,-884.31,0.00019178,2]
[346257419,1734839448211,-506.27133871,0.00019178,2]
[346257420,1734839448220,-500.0,0.00019178,2]
[346257421,1734839448230,-560.51469905,0.00019178,2]
[346257422,1734839448239,-502.37863689,0.00019178,2]
[346257423,1734839448248,-500.0,0.00019178,2]
[346257424,1734839448257,-5105.58,0.00019178,2]
[346257425,1734839448267,-502.62917549,0.00019178,2]
[346257426,1734839448276,-662.94,0.00019178,2]
[346257427,1734839448286,-662.94,0.00019178,2]
[346257428,1734839448296,-1541.57,0.00019178,2]
[346257429,1734839448305,-973.57,0.00019178,2]
[346257430,1734839448315,-503.7149174,0.00019178,2]
[346257431,1734839448324,-623.55,0.00019178,2]
[346257432,1734839448333,-502.41838256,0.00019178,2]
[346257433,1734839448344,-500.0,0.00019178,2]
[346257434,1734839448354,-502.11280253,0.00019178,2]
[346257435,1734839448364,-505.04684351,0.00019178,2]
[346257436,1734839448373,-1322.84,0.00019178,2]
[346257437,1734839448383,-502.21887801,0.00019178,2]
[346257438,1734839448393,-500.0,0.00019178,2]
[346257439,1734839448403,-2445.34,0.00019178,2]
[346257440,1734839448412,-507.66785438,0.00019178,2]
[346257441,1734839448422,-1303.43,0.00019178,2]
[346257442,1734839448431,-500.0,0.00019178,2]
[346257443,1734839448443,-500.0,0.00019178,2]
[346257444,1734839448453,-505.74122413,0.00019178,2]
[346257445,1734839448462,-500.0,0.00019178,2]
[346257446,1734839448472,-500.0,0.00019178,2]
[346257447,1734839448482,-500.0,0.00019178,2]
[346257448,1734839448492,-503.80011993,0.00019178,2]
[346257449,1734839448501,-500.0,0.00019178,2]
[346257450,1734839448511,-500.0,0.00019178,2]
[346257451,1734839448521,-855.85,0.00019178,2]
[346257452,1734839448531,-666.59,0.00019178,2]
[346257453,1734839448541,-165.05483,0.00019178,2]
[346257454,1734839448550,-502.43583529,0.00019178,2]
[346257455,1734839448559,-507.52577324,0.00019178,2]
[346257456,1734839448569,-3634.06,0.00019178,2]
[346257457,1734839448578,-568.29915338,0.00019178,2]
[346257458,1734839448588,-19772.72,0.00019178,2]
[346257459,1734839448598,-500.0,0.00019178,2]
[346257460,1734839448608,-512.28819773,0.00019178,2]
[346257461,1734839448617,-501.47409652,0.00019178,2]
[346257462,1734839448626,-500.0,0.00019178,2]
[346257463,1734839448637,-500.0,0.00019178,2]
[346257464,1734839448646,-790.57,0.00019178,2]
[346257465,1734839448655,-500.0,0.00019178,2]
[346257466,1734839448664,-47.49053377,0.00019178,2]
[346257467,1734839448681,-459.18009648,0.00019178,2]
[346257468,1734839448690,-503.8372394,0.00019178,2]
[346257469,1734839448700,-500.0,0.00019178,2]
[346257470,1734839448709,-500.0,0.00019178,2]
[346257471,1734839448718,-39.1332358,0.00019178,2]
[346257474,1734840053418,207.39,0.00010137,2]
[346257481,1734840632113,-340.28,0.00016244,2]
[346257482,1734840632123,-236.82951664,0.00017664,2]
[346257540,1734840640210,-270.10113317,0.00017664,2]
[346257541,1734840640220,-65.76386683,0.00017664,2]
[346257556,1734840643204,-434.23613317,0.00017664,2]
[346257557,1734840643213,-150.0,0.00017803,2]
[346257558,1734840643223,-150.0,0.00017803,2]
[346257559,1734840643232,-150.0,0.00017803,2]
[346257560,1734840643241,-150.62168066,0.00017803,2]
[346257561,1734840643250,-367.00832537,0.000179,2]
[346257564,1734840646040,-4194.32888085,0.000179,2]
[346257565,1734840646051,-250.0,0.00018034,2]
[346257566,1734840646061,-175.77,0.00018076,2]
[346257567,1734840646070,-1000.0,0.00018206,2]
[346257568,1734840646080,-227.03,0.00018218,2]
[346257569,1734840646089,-425.705,0.0001822,2]
[346257570,1734840646099,-1898.0,0.00018282,2]
[346257571,1734840646109,-1071.53097802,0.00018282,2]
[346257572,1734840646120,-184.46902198,0.00018282,2]
[346257573,1734840646129,-404.47097802,0.00018282,2]
[346257574,1734840646148,-926.03589053,0.00018282,2]
[346257575,1734840646356,-1224.73989343,0.00018282,2]
[346257576,1734840646410,-1214.75323802,0.00018282,2]
[346257577,1734840646420,-925.0,0.00018282,2]
[346257578,1734840646430,-818.0,0.00018282,2]
[346257579,1734840646439,-3682.0,0.00018282,2]
[346257580,1734840646449,-536.0,0.00018282,2]
[346257581,1734840646459,-1297.81881301,0.00018282,2]
[346257582,1734840983255,161.5,0.00013699,2]
[346257583,1734841018462,163.94,0.00010137,2]
[346257584,1734841393360,2000.0,0.00013699,2]